fUST/lending_fUST_20240925
["ID","MTS","AMOUNT","RATE_DAILY","PERIOD"]
[339068056,1727194045171,-241.629483,0.00023414,2]
[339068057,1727194045193,-1129.8091894,0.00023804,2]
[339068058,1727194045214,-250.0,0.0002419,2]
[339068059,1727194045235,-192.7646778,0.00024327,2]
[339068060,1727194045258,-44.8667762,0.00024687,2]
[339068061,1727194049103,-255.1332238,0.00024687,2]
[339068062,1727194049124,-300.0,0.00024687,2]
[339068063,1727194049145,-307.1840786,0.00024687,10]
[339068064,1727194049168,-490.63521444,0.00024688,2]
[339068066,1727194193887,429.518072,0.00023673,2]
[339068103,1727194231851,-157.300203,0.00024314,2]
[339068105,1727194231861,-429.518072,0.00024358,2]
[339068107,1727194231870,-157.300203,0.00024472,2]
[339068109,1727194231880,-5223.77945581,0.000246,2]
[339068111,1727194231890,-157.300203,0.0002463,2]
[339068112,1727194231899,-300.0,0.00024687,2]
[339068115,1727194231909,-300.0,0.00024687,2]
[339068118,1727194231918,-9.36478556,0.00024688,2]
[339068121,1727194231928,-500.0,0.00024688,2]
[339068123,1727194231937,-614.3271778,0.00024688,2]
[339068125,1727194231946,-600.04215824,0.00024688,2]
[339068126,1727194231955,-500.0,0.00024688,2]
[339068128,1727194231964,-127.42431989,0.00024688,2]
[339068230,1727194241108,-372.57568011,0.00024688,2]
[339068231,1727194241120,-500.0,0.00024688,2]
[339068232,1727194241131,-500.0,0.00024688,2]
[339068233,1727194241141,-500.0,0.00024688,2]
[339068234,1727194241151,-500.0,0.00024688,2]
[339068235,1727194241161,-408.20640699,0.00024688,2]
[339068236,1727194241170,-500.0,0.00024688,2]
[339068237,1727194241181,-500.0,0.00024688,2]
[339068238,1727194241192,-298.69903552,0.00024688,2]
[339068239,1727194241203,-500.0,0.00024688,2]
[339068240,1727194241214,-243.81003684,0.00024688,2]
[339068241,1727194241223,-198.67281259,0.00024688,2]
[339068242,1727194241232,-500.0,0.00024688,2]
[339068243,1727194241241,-24900.0,0.00024689,2]
[339068244,1727194241250,-500.0,0.000247,2]
[339068245,1727194241259,-157.300203,0.00024789,2]
[339068246,1727194241268,-157.300203,0.00024947,2]
[339068247,1727194241277,-642.8086434,0.00025,2]
[339068248,1727194241286,-429.518072,0.00025043,2]
[339068249,1727194241295,-157.300203,0.00025106,2]
[339068250,1727194241304,-1000.0,0.00025248,2]
[339068251,1727194241313,-157.300203,0.00025264,2]
[339068252,1727194241322,-157.300203,0.00025422,2]
[339068253,1727194241331,-157.300203,0.00025581,2]
[339068254,1727194241340,-9999.999999,0.0002566,2]
[339068255,1727194241350,-167.897499,0.00025999,2]
[339068256,1727194241358,-1500.0,0.0002625,2]
[339068257,1727194241368,-420.0,0.00026752,2]
[339068258,1727194241377,-5223.77945579,0.00026942,2]
[339068259,1727194241386,-2624.61282593,0.00026967,2]
[339068260,1727194241396,-593.39227111,0.00026973,2]
[339068261,1727194241405,-397.83,0.00026989,3]
[339068262,1727194241414,-331.53,0.00026989,3]
[339068263,1727194241528,-333.29006869,0.00026998,2]
[339068264,1727194241539,-155.78581271,0.00026998,2]
[339068265,1727194241548,-500.0,0.00026998,2]
[339068266,1727194241558,-500.0,0.00026998,2]
[339068267,1727194241567,-243.30592521,0.00026998,2]
[339068268,1727194241576,-500.0,0.00026998,2]
[339068269,1727194241586,-378.86150518,0.00026998,2]
[339068270,1727194241594,-500.0,0.00026998,2]
[339068271,1727194241604,-500.0,0.00026998,2]
[339068272,1727194241613,-500.0,0.00026998,2]
[339068273,1727194241622,-500.0,0.00026998,2]
[339068274,1727194241632,-59291.09937512,0.00026999,10]
[339068275,1727194241645,-161.79766387,0.00026999,7]
[339068276,1727194241655,-100741.81142522,0.00026999,2]
[339068277,1727194241925,-65154.23383876,0.00026999,2]
[339068297,1727194243219,-9.0722715,0.00026999,2]
[339068304,1727194246674,-206.56334738,0.00026999,2]
[339068305,1727194394691,150.0,0.0002,2]
[339068316,1727195241390,-168.120881,0.00021755,2]
[339068317,1727195241413,-160.26011,0.00021981,2]
[339068318,1727195241432,-150.0,0.00022,2]
[339068319,1727195241456,-1048.23662374,0.00022,2]
[339068321,1727195268901,3000.0,0.0002,2]
[339068322,1727195313653,4188.85027001,0.00015,7]
[339068323,1727195343412,150.0,0.0002,2]
[339068324,1727195345242,-1058.76337626,0.00022,2]
[339068325,1727195345263,-5.98008978,0.00022,2]
[339068326,1727195365280,-144.01991022,0.00022,2]
[339068327,1727195365302,-166.666666,0.00022863,2]
[339068328,1727195365324,-6083.25553512,0.00022952,2]
[339068329,1727195365345,-302.48582854,0.00023,2]
[339068330,1727195365367,-300.0,0.00023051,2]
[339068331,1727195365387,-500.0,0.00023052,2]
[339068332,1727195365408,-500.0,0.00023052,2]
[339068333,1727195365429,-500.0,0.00023052,2]
[339068334,1727195365450,-500.0,0.00023052,2]
[339068335,1727195365470,-500.0,0.00023052,2]
[339068336,1727195365497,-629.52399018,0.00023052,2]
[339068337,1727195365516,-500.0,0.00023052,2]
[339068338,1727195365539,-500.0,0.00023052,2]
[339068339,1727195365561,-500.0,0.00023052,2]
[339068340,1727195365582,-500.0,0.00023052,2]
[339068341,1727195365602,-500.0,0.00023052,2]
[339068342,1727195365624,-500.0,0.00023052,2]
[339068343,1727195365644,-500.0,0.00023052,2]
[339068344,1727195365665,-500.0,0.00023052,2]
[339068345,1727195365686,-500.0,0.00023052,2]
[339068346,1727195365706,-500.0,0.00023052,2]
[339068347,1727195365726,-500.0,0.00023052,2]
[339068348,1727195365746,-500.0,0.00023052,2]
[339068349,1727195365766,-388.69008851,0.00023052,2]
[339068350,1727195365791,-500.0,0.00023052,2]
[339068351,1727195365813,-500.0,0.00023052,2]
[339068352,1727195365836,-500.0,0.00023052,2]
[339068353,1727195365859,-500.0,0.00023052,2]
[339068354,1727195365878,-500.0,0.00023052,2]
[339068355,1727195365899,-500.0,0.00023052,2]
[339068356,1727195365918,-500.0,0.00023052,2]
[339068357,1727195365943,-500.0,0.00023052,2]
[339068358,1727195365963,-500.0,0.00023052,2]
[339068359,1727195365985,-500.0,0.00023052,2]
[339068360,1727195366004,-500.0,0.00023052,2]
[339068361,1727195366024,-358.2040092,0.00023052,2]
[339068362,1727195366048,-500.0,0.00023052,2]
[339068363,1727195366070,-500.0,0.00023052,2]
[339068364,1727195366094,-500.0,0.00023052,2]
[339068365,1727195366116,-500.0,0.00023052,2]
[339068366,1727195366137,-500.0,0.00023052,2]
[339068367,1727195366161,-500.0,0.00023052,2]
[339068368,1727195366182,-500.0,0.00023052,2]
[339068369,1727195366206,-500.0,0.00023052,2]
[339068370,1727195366227,-172.92620462,0.00023052,2]
[339068371,1727195366248,-500.0,0.00023052,2]
[339068372,1727195366270,-500.0,0.00023052,2]
[339068373,1727195366292,-500.0,0.00023052,2]
[339068374,1727195366315,-500.0,0.00023052,2]
[339068375,1727195366338,-500.0,0.00023052,2]
[339068376,1727195366359,-500.0,0.00023052,2]
[339068377,1727195366380,-500.0,0.00023052,2]
[339068378,1727195366401,-500.0,0.00023052,2]
[339068379,1727195366421,-500.0,0.00023052,2]
[339068380,1727195366442,-500.0,0.00023052,2]
[339068381,1727195366463,-500.0,0.00023052,2]
[339068382,1727195366486,-500.0,0.00023052,2]
[339068383,1727195366506,-500.0,0.00023052,2]
[339068384,1727195366527,-500.0,0.00023052,2]
[339068385,1727195366548,-500.0,0.00023052,2]
[339068386,1727195366569,-500.0,0.00023052,2]
[339068387,1727195366592,-500.0,0.00023052,2]
[339068388,1727195366613,-500.0,0.00023052,2]
[339068389,1727195366634,-500.0,0.00023052,2]
[339068390,1727195366655,-500.0,0.00023052,2]
[339068391,1727195366676,-571.95102396,0.00023052,2]
[339068392,1727195366697,-500.0,0.00023052,2]
[339068393,1727195366718,-500.0,0.00023052,2]
[339068394,1727195366741,-500.0,0.00023052,2]
[339068395,1727195366763,-500.0,0.00023052,2]
[339068396,1727195366789,-500.0,0.00023052,2]
[339068397,1727195366811,-500.0,0.00023052,2]
[339068398,1727195366834,-500.0,0.00023052,2]
[339068399,1727195366857,-500.0,0.00023052,2]
[339068400,1727195366878,-500.0,0.00023052,2]
[339068401,1727195366899,-500.0,0.00023052,2]
[339068402,1727195366921,-500.0,0.00023052,2]
[339068403,1727195366942,-500.0,0.00023052,2]
[339068404,1727195366963,-500.0,0.00023052,2]
[339068405,1727195366984,-500.0,0.00023052,2]
[339068406,1727195367006,-500.0,0.00023052,2]
[339068407,1727195367031,-500.0,0.00023052,2]
[339068408,1727195367059,-500.0,0.00023052,2]
[339068409,1727195367081,-500.0,0.00023052,2]
[339068410,1727195367105,-500.0,0.00023052,2]
[339068411,1727195367131,-500.0,0.00023052,2]
[339068412,1727195367155,-500.0,0.00023052,2]
[339068413,1727195367179,-500.0,0.00023052,2]
[339068414,1727195367202,-500.0,0.00023052,2]
[339068415,1727195367223,-500.0,0.00023052,2]
[339068416,1727195367249,-500.0,0.00023052,2]
[339068417,1727195367272,-500.0,0.00023052,2]
[339068418,1727195367294,-500.0,0.00023052,2]
[339068419,1727195367317,-500.0,0.00023052,2]
[339068420,1727195367339,-500.0,0.00023052,2]
[339068421,1727195367363,-500.0,0.00023052,2]
[339068422,1727195367386,-500.0,0.00023052,2]
[339068423,1727195367408,-500.0,0.00023052,2]
[339068424,1727195367431,-500.0,0.00023052,2]
[339068425,1727195367452,-500.0,0.00023052,2]
[339068426,1727195367477,-500.0,0.00023052,2]
[339068427,1727195367502,-500.0,0.00023052,2]
[339068428,1727195367525,-500.0,0.00023052,2]
[339068429,1727195367657,-500.0,0.00023052,2]
[339068430,1727195367689,-500.0,0.00023052,2]
[339068431,1727195367711,-325.1443207,0.00023052,2]
[339068432,1727195367737,-500.0,0.00023052,2]
[339068433,1727195367759,-500.0,0.00023052,2]
[339068434,1727195367781,-500.0,0.00023052,2]
[339068435,1727195367802,-500.0,0.00023052,2]
[339068436,1727195367825,-500.0,0.00023052,2]
[339068437,1727195367848,-500.0,0.00023052,2]
[339068438,1727195367870,-500.0,0.00023052,2]
[339068439,1727195367892,-500.0,0.00023052,2]
[339068440,1727195367913,-500.0,0.00023052,2]
[339068441,1727195367937,-500.0,0.00023052,2]
[339068442,1727195367960,-500.0,0.00023052,2]
[339068443,1727195367987,-500.0,0.00023052,2]
[339068444,1727195368009,-500.0,0.00023052,2]
[339068445,1727195368030,-500.0,0.00023052,2]
[339068446,1727195368058,-500.0,0.00023052,2]
[339068447,1727195368081,-250.0,0.00023052,2]
[339068448,1727195368102,-500.0,0.00023054,2]
[339068449,1727195368125,-333.95784639,0.00023054,2]
[339068450,1727195368148,-500.0,0.00023054,2]
[339068451,1727195368168,-500.0,0.00023054,2]
[339068452,1727195368189,-500.0,0.00023054,2]
[339068453,1727195368209,-318.36457722,0.00023054,2]
[339068454,1727195368233,-500.0,0.00023054,2]
[339068455,1727195368254,-314.87339453,0.00023054,2]
[339068456,1727195368275,-500.0,0.00023054,2]
[339068457,1727195368297,-571.6793059,0.00023054,2]
[339068458,1727195368321,-500.0,0.00023054,2]
[339068459,1727195368345,-500.0,0.00023054,2]
[339068460,1727195368366,-500.0,0.00023054,2]
[339068461,1727195368389,-500.0,0.00023054,2]
[339068462,1727195368413,-500.0,0.00023054,2]
[339068463,1727195368435,-500.0,0.00023054,2]
[339068464,1727195368458,-500.0,0.00023054,2]
[339068465,1727195368479,-465.95695236,0.00023054,2]
[339068466,1727195370123,-34.04304764,0.00023054,2]
[339068467,1727195370144,-500.0,0.00023054,2]
[339068468,1727195370165,-343.40002531,0.00023054,2]
[339068469,1727195415735,1037.3380092,0.00021748,2]
[339068470,1727195427385,16.43720717,0.00021748,2]
[339068514,1727195432134,-164.08237483,0.00021748,2]
[339068516,1727195432145,-180.519582,0.00021753,2]
[339068518,1727195432154,-180.519582,0.00021759,2]
[339068520,1727195432163,-180.519582,0.00021765,2]
[339068522,1727195432173,-180.519582,0.0002177,2]
[339068524,1727195432182,-180.519582,0.00021776,2]
[339068526,1727195432191,-180.519582,0.00021782,2]
[339068528,1727195432201,-180.519582,0.00021788,2]
[339068530,1727195432210,-180.519582,0.00021793,2]
[339068532,1727195432221,-180.519582,0.00021799,2]
[339068534,1727195432231,-180.519582,0.00021805,2]
[339068536,1727195432242,-180.519582,0.00021811,2]
[339068538,1727195432252,-175.31323968,0.00021816,2]
[339068540,1727195432265,-5.20634232,0.00021816,2]
[339068543,1727195432277,-288.36045773,0.00022,2]
[339068545,1727195432289,-211.63954227,0.00022,2]
[339068547,1727195432298,-250.0,0.00022231,2]
[339068549,1727195432308,-250.0,0.00022292,2]
[339068551,1727195432318,-84.0557562,0.00022353,2]
[339068553,1727195432330,-165.9442438,0.00022353,2]
[339068555,1727195432340,-250.0,0.00022414,2]
[339068558,1727195432351,-220.59201437,0.00022475,2]
[339068574,1727195438282,-180.519582,0.00021822,2]
[339068575,1727195438292,-180.519582,0.00021828,2]
[339068576,1727195438303,-180.519582,0.00021833,2]
[339068577,1727195438312,-180.519582,0.00021839,2]
[339068578,1727195438324,-180.519582,0.00021845,2]
[339068579,1727195438334,-180.519582,0.00021851,2]
[339068580,1727195438346,-180.519582,0.00021856,2]
[339068581,1727195438355,-29.40798563,0.00022475,2]
[339068582,1727195438364,-250.0,0.00022536,2]
[339068583,1727195438373,-250.0,0.00022597,2]
[339068584,1727195438382,-250.0,0.00022658,2]
[339068585,1727195438391,-250.0,0.00022718,2]
[339068586,1727195438400,-250.0,0.00022779,2]
[339068587,1727195438409,-250.0,0.0002284,2]
[339068588,1727195438418,-250.0,0.00022901,2]
[339068589,1727195438427,-250.0,0.00022962,2]
[339068590,1727195438436,-500.0,0.00023,2]
[339068591,1727195438445,-500.0,0.00023,2]
[339068592,1727195438454,-363.76147549,0.00023,2]
[339068593,1727195438465,-302.48582854,0.00023,2]
[339068594,1727195438475,-250.0,0.00023023,2]
[339068595,1727195438484,-300.0,0.00023053,2]
[339068596,1727195438493,-300.0,0.00023053,2]
[339068597,1727195438502,-262.02266769,0.00023054,2]
[339068598,1727195438512,-500.0,0.00023054,2]
[339068599,1727195438522,-347.7248878,0.00023054,2]
[339068600,1727195438532,-500.0,0.00023054,2]
[339068601,1727195438543,-414.70953446,0.00023054,2]
[339068602,1727195438554,-500.0,0.00023054,2]
[339068603,1727195438564,-500.0,0.00023054,2]
[339068604,1727195438574,-241.43624496,0.00023054,2]
[339068605,1727195438583,-500.0,0.00023054,2]
[339068606,1727195438593,-500.0,0.00023054,2]
[339068607,1727195438602,-500.0,0.00023054,2]
[339068608,1727195438611,-500.0,0.00023054,2]
[339068609,1727195438621,-500.0,0.00023054,2]
[339068610,1727195438630,-500.0,0.00023054,2]
[339068611,1727195438639,-24900.0,0.00023055,2]
[339068612,1727195438648,-250.0,0.00023084,2]
[339068613,1727195438657,-500.0,0.000231,2]
[339068614,1727195438666,-593.39227111,0.000231,2]
[339068615,1727195438675,-161.16816459,0.000231,2]
[339068616,1727195438684,-500.0,0.000231,2]
[339068617,1727195438693,-500.0,0.000231,2]
[339068618,1727195438702,-500.0,0.000231,2]
[339068619,1727195438711,-500.0,0.000231,2]
[339068620,1727195438720,-570.59395856,0.000231,2]
[339068621,1727195438730,-500.0,0.000231,2]
[339068622,1727195438739,-500.0,0.000231,2]
[339068623,1727195438748,-501.24054705,0.000231,2]
[339068624,1727195438757,-250.0,0.00023145,2]
[339068625,1727195438766,-250.0,0.00023206,2]
[339068626,1727195438778,-302.48582854,0.0002323,2]
[339068627,1727195438787,-151.24291427,0.0002323,2]
[339068628,1727195438796,-250.0,0.00023267,2]
[339068629,1727195438805,-500.0,0.00023288,2]
[339068630,1727195438815,-500.0,0.00023288,2]
[339068631,1727195438825,-500.0,0.00023288,2]
[339068632,1727195438836,-417.28202373,0.00023288,2]
[339068633,1727195438845,-250.0,0.00023328,2]
[339068634,1727195438856,-250.0,0.00023389,2]
[339068635,1727195438867,-161.10799508,0.0002346,2]
[339068636,1727195438876,-500.0,0.00023637,2]
[339068637,1727195438885,-500.0,0.00023637,2]
[339068638,1727195438894,-572.85520405,0.00023637,2]
[339068639,1727195438903,-500.0,0.00023637,2]
[339068640,1727195438912,-190.94630791,0.00023637,2]
[339068641,1727195438921,-233.77049248,0.00023637,2]
[339068642,1727195438930,-500.0,0.00023637,2]
[339068643,1727195438939,-500.0,0.00023637,2]
[339068644,1727195438948,-500.0,0.00023637,2]
[339068645,1727195438956,-270.41137618,0.00023637,2]
[339068646,1727195438966,-500.0,0.00023637,2]
[339068647,1727195438975,-482.53779054,0.00023637,2]
[339068659,1727195439965,-17.46220946,0.00023637,2]
[339068660,1727195439975,-500.0,0.00023637,2]
[339068661,1727195439983,-500.0,0.00023637,2]
[339068662,1727195439993,-500.0,0.00023637,2]
[339068663,1727195440002,-258.24975083,0.00023637,2]
[339068664,1727195440011,-500.0,0.00023637,2]
[339068665,1727195440021,-500.0,0.00023637,2]
[339068666,1727195440032,-500.0,0.00023637,2]
[339068667,1727195440042,-92446.3477664,0.00023638,3]
[339068668,1727195440053,-3681.92705005,0.00023638,3]
[339068669,1727195440067,-1000.0,0.00023648,2]
[339068670,1727195440077,-1000.0,0.00023648,2]
[339068672,1727195440086,-1000.0,0.00023648,2]
[339068674,1727195440095,-383.04284307,0.00023648,2]
[339068676,1727195440104,-377.26870101,0.00023648,2]
[339068679,1727195440114,-3874.713531,0.00024,14]
[339068682,1727195440124,-288.5746376,0.00024,30]
[339068684,1727195440136,-500.0,0.000243,2]
[339068687,1727195440145,-5000.0,0.00024587,2]
[339068690,1727195440155,-436.39196174,0.0002465,2]
[339068693,1727195440164,-1503.9201901,0.0002465,2]
[339068695,1727195440173,-1500.0,0.0002465,2]
[339068697,1727195440182,-200.0,0.00024658,15]
[339068699,1727195440191,-471.73219564,0.00024848,2]
[339068701,1727195440201,-525.37184437,0.00025,30]
[339068703,1727195440210,-11619.42493657,0.00025,2]
[339068705,1727195440219,-822.5140414,0.00025,2]
[339068707,1727195440228,-420.0,0.00025024,2]
[339068708,1727195440238,-6860.16946107,0.00025032,2]
[339068709,1727195440247,-500.0,0.0002507,2]
[339068710,1727195440256,-1190.02934003,0.0002507,2]
[339068711,1727195440265,-413.12501748,0.0002507,2]
[339068712,1727195440277,-628.71719174,0.0002507,2]
[339068713,1727195440286,-176.74,0.0002508,120]
[339068714,1727195440295,-68747.53476974,0.0002509,2]
[339068715,1727195440303,-161.79766387,0.0002509,7]
[339068716,1727195440313,-6860.16946107,0.00025255,2]
[339068717,1727195440322,-420.0,0.00025358,2]
[339068718,1727195440331,-6860.16946107,0.00025488,2]
[339068719,1727195440340,-6083.25553507,0.00025577,2]
[339068720,1727195440349,-153.7752004,0.000256,2]
[339068721,1727195440358,-153.7752004,0.000256,2]
[339068722,1727195440368,-1000.0,0.00025618,2]
[339068723,1727195440378,-77571.99333538,0.00025937,10]
[339068724,1727195440387,-133557.78939436,0.00025937,10]
[339068725,1727195440396,-151.0,0.00025937,7]
[339068726,1727195440406,-151.0,0.00025937,7]
[339068727,1727195440415,-151.0,0.00025937,7]
[339068728,1727195440423,-151.0,0.00025937,7]
[339068729,1727195440433,-92446.3477664,0.00025937,4]
[339068730,1727195440442,-3681.92705005,0.00025937,4]
[339068731,1727195440452,-287.31931036,0.00025947,2]
[339068732,1727195440554,-6860.16946107,0.00025986,2]
[339068733,1727195440564,-525.00043144,0.00026,2]
[339068734,1727195440573,-150.0,0.00026129,2]
[339068735,1727195440582,-6860.16946107,0.00026278,2]
[339068736,1727195440591,-209.0432937,0.00026384,2]
[339068737,1727195440600,-344.71352596,0.00026395,2]
[339068738,1727195440610,-7458.94652043,0.0002649,2]
[339068739,1727195440619,-1309.02601853,0.000265,2]
[339068740,1727195440630,-6860.16946107,0.00026523,2]
[339068741,1727195440641,-154.79661188,0.00026546,2]
[339068742,1727195440651,-1839.99292697,0.00026561,2]
[339068743,1727195440662,-1309.02601849,0.00026573,2]
[339068744,1727195440671,-92446.3477664,0.0002659,4]
[339068745,1727195440681,-3681.92705005,0.0002659,4]
[339068746,1727195440690,-151.0,0.0002659,7]
[339068747,1727195440700,-151.0,0.0002659,7]
[339068748,1727195440709,-25000.0,0.000266,2]
[339068749,1727195440718,-33926.34054675,0.000266,4]
[339068750,1727195440727,-150.112235,0.000266,8]
[339068751,1727195440736,-151.0,0.000266,7]
[339068752,1727195440746,-1500.0,0.0002662,2]
[339068753,1727195440755,-1309.02601849,0.00026645,2]
[339068754,1727195440764,-151.0,0.00026645,7]
[339068755,1727195440774,-151.0,0.0002665,7]
[339068756,1727195440785,-151.0,0.0002665,7]
[339068757,1727195440794,-92446.3477664,0.00026651,4]
[339068758,1727195440803,-18409.6352503,0.00026651,4]
[339068759,1727195440813,-11045.7811502,0.00026651,4]
[339068760,1727195440822,-165.870844,0.0002666,7]
[339068761,1727195440832,-165.870844,0.0002666,7]
[339068762,1727195440844,-151.0,0.00026661,7]
[339068763,1727195440854,-152.214454,0.00026661,7]
[339068764,1727195440863,-736.182447,0.00026661,7]
[339068765,1727195440873,-736.182447,0.00026661,7]
[339068766,1727195440882,-151.0,0.00026661,7]
[339068767,1727195440891,-151.0,0.00026661,7]
[339068768,1727195440900,-773.316913,0.00026661,7]
[339068769,1727195440909,-773.316913,0.00026661,7]
[339068770,1727195440918,-773.316913,0.00026661,7]
[339068771,1727195440927,-773.316913,0.00026661,7]
[339068772,1727195440936,-664.53855,0.00026661,7]
[339068773,1727195440945,-664.53855,0.00026661,7]
[339068774,1727195440954,-2000.0,0.00026661,2]
[339068775,1727195440963,-2000.0,0.00026661,2]
[339068776,1727195440972,-2000.0,0.00026661,2]
[339068777,1727195440981,-2000.0,0.00026661,2]
[339068778,1727195440990,-2000.0,0.00026661,2]
[339068779,1727195441000,-2000.0,0.00026661,2]
[339068780,1727195441009,-2000.0,0.00026661,2]
[339068781,1727195441018,-2000.0,0.00026661,2]
[339068782,1727195441031,-2000.0,0.00026661,2]
[339068783,1727195441040,-2000.0,0.00026661,2]
[339068784,1727195441049,-1327.596309,0.00026661,2]
[339068785,1727195441059,-159.908072,0.00026661,7]
[339068786,1727195441070,-159.908072,0.00026661,7]
[339068787,1727195441079,-159.908072,0.00026661,7]
[339068788,1727195441088,-159.908072,0.00026661,7]
[339068789,1727195441097,-159.908072,0.00026661,7]
[339068790,1727195441109,-159.908072,0.00026661,7]
[339068791,1727195441119,-159.908072,0.00026661,7]
[339068792,1727195441128,-159.908072,0.00026661,7]
[339068793,1727195441138,-383.894364,0.00026661,7]
[339068794,1727195441147,-383.894364,0.00026661,7]
[339068795,1727195441156,-383.894364,0.00026661,7]
[339068796,1727195441165,-383.894364,0.00026661,7]
[339068797,1727195441174,-151.0,0.00026661,7]
[339068798,1727195441183,-151.0,0.00026661,7]
[339068799,1727195441192,-151.0,0.00026661,7]
[339068800,1727195441201,-151.0,0.00026661,7]
[339068801,1727195441210,-530.317053,0.00026661,7]
[339068802,1727195441219,-530.317053,0.00026661,7]
[339068803,1727195441229,-530.317053,0.00026661,7]
[339068804,1727195441237,-530.317053,0.00026661,7]
[339068805,1727195441247,-530.317053,0.00026661,7]
[339068806,1727195441258,-530.317053,0.00026661,7]
[339068807,1727195441267,-530.317053,0.00026661,7]
[339068808,1727195441279,-530.317053,0.00026661,7]
[339068809,1727195441288,-2747.920549,0.00026661,7]
[339068810,1727195441298,-2747.920549,0.00026661,7]
[339068811,1727195441307,-165.870844,0.00026661,7]
[339068812,1727195441316,-151.0,0.00026661,7]
[339068813,1727195441325,-151.0,0.00026661,7]
[339068814,1727195441334,-165.870844,0.00026661,7]
[339068815,1727195441343,-151.0,0.00026661,7]
[339068816,1727195441354,-165.870844,0.00026661,7]
[339068817,1727195441363,-151.0,0.00026661,7]
[339068818,1727195441372,-151.0,0.00026661,7]
[339068819,1727195441381,-2747.920549,0.00026661,7]
[339068820,1727195441390,-165.870844,0.00026661,7]
[339068821,1727195441399,-151.0,0.00026661,7]
[339068822,1727195441408,-165.870844,0.00026661,7]
[339068823,1727195441417,-2747.920549,0.00026661,7]
[339068824,1727195441426,-151.0,0.00026661,7]
[339068825,1727195441435,-151.0,0.00026661,7]
[339068826,1727195441444,-165.870844,0.00026661,7]
[339068827,1727195441454,-193.018,0.00026661,7]
[339068828,1727195441462,-1388.138646,0.00026661,7]
[339068829,1727195441472,-1388.138646,0.00026661,7]
[339068830,1727195441481,-1388.138646,0.00026661,7]
[339068831,1727195441490,-1388.138646,0.00026661,7]
[339068832,1727195441499,-1388.138646,0.00026661,7]
[339068833,1727195441508,-1388.138646,0.00026661,7]
[339068834,1727195441517,-1388.138646,0.00026661,7]
[339068835,1727195441527,-1388.138646,0.00026661,7]
[339068836,1727195441537,-278.372298,0.00026661,7]
[339068837,1727195441546,-500.0,0.00026671,7]
[339068838,1727195441555,-164.77,0.00026671,7]
[339068839,1727195441564,-6860.1694611,0.00026675,2]
[339068840,1727195441573,-296.3798113,0.00026679,2]
[339068841,1727195441582,-167.30992164,0.0002669,7]
[339068842,1727195441590,-167.30992164,0.0002669,7]
[339068843,1727195441599,-167.30992164,0.0002669,7]
[339068844,1727195441608,-167.30992164,0.0002669,7]
[339068845,1727195441617,-167.30992164,0.0002669,7]
[339068846,1727195441626,-167.30992164,0.0002669,7]
[339068847,1727195441635,-167.30992164,0.0002669,7]
[339068848,1727195441644,-167.8,0.0002669,7]
[339068849,1727195441654,-267.77087463,0.0002669,7]
[339068850,1727195441663,-267.77087463,0.0002669,7]
[339068851,1727195441672,-267.77087463,0.0002669,7]
[339068852,1727195441681,-267.77087463,0.0002669,7]
[339068853,1727195441690,-267.77087463,0.0002669,7]
[339068854,1727195441699,-267.77087463,0.0002669,7]
[339068855,1727195441707,-267.77087463,0.0002669,7]